bitfinex/quotes_ETHUSD_20250322
["timestamp","ask_amount","ask_price","bid_price","bid_amount"]
[1742634436302,5.83193,1994.3,1994.0,4.95703145]
[1742634437112,0.8176,1994.3,1994.0,14.1228676]
[1742634437415,5.01421,1994.4,1994.0,19.1377676]
[1742634438717,5.80249,1994.5,1994.1,0.8082]
[1742634438888,5.80257,1994.5,1994.2,0.28198756]
[1742634439086,5.80257,1994.5,1994.1,5.8228]
[1742634439291,5.80257,1994.5,1994.2,0.28198756]
[1742634439490,5.80257,1994.5,1994.1,8.16918647]
[1742634439690,5.80257,1994.5,1994.2,0.28198756]
[1742634439890,5.80257,1994.5,1994.1,8.16918647]
[1742634440091,5.01406,1994.4,1994.2,0.28198756]
[1742634440599,5.01406,1994.4,1994.1,2.34638647]
[1742634440831,5.01406,1994.4,1994.3,0.28167097]
[1742634441316,5.01406,1994.4,1994.1,2.34638647]
[1742634441523,5.01406,1994.4,1994.2,0.28198756]
[1742634441711,5.01406,1994.4,1994.1,7.36113647]
[1742634441916,5.01406,1994.4,1994.2,0.28198756]
[1742634442100,5.01406,1994.4,1994.1,7.36113647]
[1742634442292,5.01406,1994.4,1994.2,0.28198756]
[1742634442492,5.01406,1994.4,1994.1,2.34638647]
[1742634442684,5.01406,1994.4,1994.2,0.28208114]
[1742634442889,5.01406,1994.4,1994.1,2.34638647]
[1742634443088,10.02831,1994.4,1994.2,0.28208114]
[1742634443330,10.02831,1994.4,1994.1,2.34638647]
[1742634443620,5.01406,1994.4,1994.2,0.28208114]
[1742634443995,5.80251,1994.5,1994.1,7.36102647]
[1742634444200,5.80251,1994.5,1994.3,0.28176455]
[1742634444518,5.80251,1994.5,1994.4,0.28144799]
[1742634444723,5.80251,1994.5,1994.2,0.73344326]
[1742634444896,5.80251,1994.5,1994.3,0.28176455]
[1742634445529,10.81649,1994.5,1994.3,0.28176455]
[1742634445712,5.01403,1994.4,1994.3,0.28176455]
[1742634447122,5.01403,1994.4,1994.0,14.67494]
[1742634447326,5.01403,1994.4,1994.1,1.74989177]
[1742634447535,5.01403,1994.4,1994.1,6.76467177]
[1742634447913,5.01403,1994.4,1994.1,1.74989177]
[1742634449235,5.01403,1994.4,1994.1,6.76467177]
[1742634449431,5.80257,1994.5,1994.1,6.76456177]
[1742634449640,5.80257,1994.5,1994.2,0.67645618]
[1742634450014,5.80257,1994.5,1994.3,0.28176455]
[1742634450830,5.01387,1994.5,1994.3,0.28176455]
[1742634451031,0.1197358,1994.6,1994.4,0.8034]
[1742634451221,0.1197358,1994.6,1994.4,5.4454]
[1742634451423,0.1197358,1994.6,1994.5,0.28105658]
[1742634451639,0.9430358,1994.6,1994.5,0.28105658]
[1742634452013,5.9565658,1994.6,1994.5,0.28105658]
[1742634452742,5.9565658,1994.6,1994.3,4.652]
[1742634452946,10.9702758,1994.6,1994.4,0.28137311]
[1742634453241,5.01378,1994.5,1994.4,0.28137311]
[1742634453412,10.02778,1994.5,1994.3,4.652]
[1742634453737,10.02778,1994.5,1994.4,0.28137311]
[1742634453940,10.02778,1994.5,1994.3,4.652]
[1742634454116,5.01378,1994.5,1994.4,0.28137311]
[1742634454298,5.01378,1994.5,1994.3,4.652]
[1742634454499,5.01378,1994.5,1994.4,0.28137311]
[1742634454702,5.01403,1994.4,1994.3,4.652]
[1742634454937,5.01403,1994.4,1994.3,4.93368967]
[1742634461343,5.83733,1994.4,1994.3,4.93368967]
[1742634463441,5.83733,1994.4,1994.3,0.28168967]
[1742634463745,5.01442,1994.3,1994.0,4.645]
[1742634463913,5.01442,1994.3,1994.1,0.28236039]
[1742634464113,10.02889,1994.3,1994.1,0.28236039]
[1742634465448,5.01442,1994.3,1994.1,0.28236039]
[1742634465749,10.02891,1994.3,1994.1,0.28236039]
[1742634465916,10.02891,1994.3,1993.9,36.97463]
[1742634466116,5.01455,1994.2,1994.0,0.28267704]
[1742634467326,5.81149,1994.1,1994.0,0.28267704]
[1742634468319,5.01432,1994.3,1994.0,0.28267704]
[1742634468845,0.7967,1994.4,1994.0,0.28267704]
[1742634469018,5.81078,1994.4,1994.0,6.09954704]
[1742634469537,5.81078,1994.4,1994.0,15.34136374]
[1742634469743,5.81078,1994.4,1994.0,10.32639374]
[1742634470417,10.82502,1994.4,1994.0,10.32639374]
[1742634473152,5.0143,1994.3,1994.0,0.28267704]
[1742634473545,5.01454,1994.2,1994.0,0.28267704]
[1742634473920,10.0293,1994.2,1994.0,0.28267704]
[1742634474122,5.01454,1994.2,1994.0,0.28267704]
[1742634480475,5.0143,1994.3,1994.0,0.28267704]
[1742634480674,5.0143,1994.3,1994.0,1.11047704]
[1742634480834,0.7967,1994.4,1994.0,4.75575474]
[1742634481171,5.81082,1994.4,1994.0,12.0690035]
[1742634482261,10.82505,1994.4,1994.0,12.0690035]
[1742634482466,10.82505,1994.4,1994.0,9.77066474]
[1742634482628,10.82505,1994.4,1994.0,6.12538704]
[1742634483532,10.82505,1994.4,1994.0,6.59193841]
[1742634484356,5.01429,1994.3,1994.0,6.59193841]
[1742634484563,5.01429,1994.3,1994.0,1.11047704]
[1742634484951,5.01457,1994.2,1994.0,1.11047704]
[1742634485266,10.02876,1994.3,1994.0,1.11047704]
[1742634485574,5.0146,1994.2,1994.0,1.11047704]
[1742634485974,5.01429,1994.3,1994.0,1.11047704]
[1742634486134,10.0288,1994.3,1994.0,1.11047704]
[1742634486335,5.01458,1994.2,1994.0,1.11047704]
[1742634486767,0.1197358,1994.6,1994.5,5.01378]
[1742634487080,0.1197358,1994.6,1994.5,8.42127493]
[1742634487378,0.1197358,1994.6,1994.5,14.41127493]
[1742634488341,0.1197358,1994.6,1994.5,14.87665465]
[1742634489179,0.1197358,1994.6,1994.5,16.40472171]
[1742634489506,0.1197358,1994.6,1994.5,19.49473431]
[1742634489986,0.1197358,1994.6,1994.5,19.87372376]
[1742634490495,0.1197358,1994.6,1994.5,20.42372376]
[1742634490643,0.1197358,1994.6,1994.5,23.42372376]
[1742634490846,3.33e-06,1994.6,1994.5,26.42372376]
[1742634491051,3.33e-06,1994.6,1994.5,27.16549019]
[1742634491355,0.1197358,1996.6,1996.3,5.00926]
[1742634491559,0.1197358,1996.6,1996.5,8.83516582]
[1742634491769,0.1197358,1996.6,1996.5,0.7579844]
[1742634491958,0.1197358,1996.6,1996.5,0.27370361]
[1742634491959,9.75245162,1996.6,1996.5,0.27370361]
[1742634492158,1.89278096,1996.6,1996.2,26.51]
[1742634492456,0.9175358,1996.6,1996.3,0.24971205]
[1742634492643,5.00901,1996.4,1996.3,0.24971205]
[1742634493275,5.00888,1996.5,1996.3,0.24971205]
[1742634493485,5.00889,1996.5,1996.3,0.24971205]
[1742634493947,0.1197358,1996.6,1996.3,14.66696787]
[1742634494198,0.1197358,1996.6,1996.4,5.00883]
[1742634494362,0.1197358,1996.6,1996.3,10.02996205]
[1742634494559,0.1197358,1996.6,1996.3,5.02071205]
[1742634494979,0.1197358,1996.6,1996.3,10.02989205]
[1742634495677,0.1197358,1996.6,1996.4,5.00891]
[1742634495897,0.1197358,1996.6,1996.3,10.02982205]
[1742634496068,0.1197358,1996.6,1996.5,0.24688786]
[1742634496264,0.71231638,1996.6,1996.4,0.24720376]
[1742634496468,0.71231638,1996.6,1996.5,0.24688786]
[1742634496669,0.71231638,1996.6,1996.5,0.62775913]
[1742634496869,0.1197358,1996.6,1996.5,10.02663709]
[1742634497074,0.1197358,1996.6,1996.5,10.27352495]
[1742634497894,0.1197358,1996.6,1996.5,0.24688786]
[1742634499356,0.1197358,1996.6,1996.5,5.25564786]
[1742634500454,0.1197358,1996.6,1996.5,0.24688786]
[1742634501359,0.1197358,1996.6,1996.5,5.25564786]
[1742634502461,0.1197358,1996.6,1996.5,0.24688786]
[1742634502652,0.1197358,1996.6,1996.5,5.25564786]
[1742634502852,0.1197358,1996.6,1996.5,0.24688786]
[1742634503878,0.63253838,1996.6,1996.5,0.24688786]
[1742634504074,0.63253838,1996.6,1996.4,4.814]
[1742634504258,5.64104838,1996.6,1996.5,0.24328461]
[1742634504455,0.63253838,1996.6,1996.5,0.24328461]
[1742634505003,5.64104838,1996.6,1996.5,0.24328461]
[1742634505487,11.45635838,1996.6,1996.3,4.813]
[1742634505788,11.45630838,1996.6,1996.4,0.2436005]
[1742634505966,6.44764838,1996.6,1996.4,0.2436005]
[1742634506790,0.1197358,1996.6,1996.4,0.2436005]
[1742634507084,0.1197358,1996.6,1996.5,5.00876]
[1742634507274,0.1197358,1996.6,1996.4,11.0469505]
[1742634507476,0.1197358,1996.6,1996.5,5.25204461]
[1742634509086,0.1197358,1996.6,1996.5,9.07845043]
[1742634509291,0.1197358,1996.6,1996.5,11.27268247]
[1742634509598,0.1197358,1996.6,1996.5,12.25927665]
[1742634509802,0.1197358,1996.6,1996.5,16.46890704]
[1742634510503,0.1197358,1996.6,1996.5,19.46890704]
[1742634511002,0.1197358,1996.6,1996.5,25.45890704]
[1742634511518,0.8066,1997.4,1996.5,26.00890704]
[1742634511702,5.25765283,1998.1,1997.3,0.7855]
[1742634511924,5.00536,1997.9,1997.5,5.00613]
[1742634512124,5.00616,1997.6,1997.4,26.7204037]
[1742634512273,0.500616,1997.5,1997.4,26.481]
[1742634512471,6.313466,1997.5,1997.4,26.481]
[1742634513093,10.13987182,1997.5,1997.4,26.481]
[1742634513337,5.00741,1997.1,1996.7,43.10673]
[1742634513493,5.00741,1997.1,1996.7,37.11673]
[1742634513938,10.0149,1997.1,1996.7,37.11673]
[1742634514097,5.00732,1997.1,1996.7,37.11673]
[1742634514294,5.00761,1997.0,1996.7,32.1085]
[1742634514695,5.00801,1996.8,1996.7,26.481]
[1742634515652,5.00801,1996.8,1996.7,26.68309773]
[1742634517534,5.80388,1997.0,1996.7,26.68309773]
[1742634518332,5.00791,1996.9,1996.7,26.68309773]
[1742634518633,5.00801,1996.8,1996.7,26.68309773]
[1742634520231,5.00791,1996.9,1996.7,26.68309773]
[1742634520540,5.00739,1997.1,1996.8,0.806]
[1742634520718,5.00751,1997.0,1996.8,0.806]
[1742634520925,5.00739,1997.1,1996.9,0.20175989]
[1742634521433,5.00739,1997.1,1996.8,0.806]
[1742634521595,15.19020966,1997.2,1997.0,0.20144415]
[1742634521932,10.18299966,1997.2,1996.8,5.81383]
[1742634522238,15.19018966,1997.2,1996.8,5.81383]
[1742634522398,15.19018966,1997.2,1996.9,0.20175989]
[1742634522737,15.19020966,1997.2,1996.9,0.20175989]
[1742634522934,5.00726,1997.1,1996.8,5.81383]
[1742634523135,5.00726,1997.1,1997.0,0.20144415]
[1742634523310,6.52628597,1997.1,1997.0,0.20144415]
[1742634523723,5.00776,1996.9,1996.8,4.829]
[1742634523922,5.00776,1996.9,1996.7,26.481]
[1742634524333,5.00774,1997.0,1996.7,26.481]
[1742634524644,5.00726,1997.1,1996.8,5.20980029]
[1742634524824,5.00726,1997.1,1996.8,0.20180029]
[1742634525027,5.00752,1997.0,1996.8,0.20180029]
[1742634525655,5.00752,1997.0,1996.9,0.20148452]
[1742634526002,5.00752,1997.0,1996.7,26.481]
[1742634526208,10.01525,1997.0,1996.8,0.20180029]
[1742634526505,5.00733,1997.1,1996.7,31.48919]
[1742634526728,5.00733,1997.1,1996.9,0.20148452]
[1742634526924,5.00733,1997.1,1996.8,0.20180029]
[1742634527129,5.00733,1997.1,1997.0,0.20116878]
[1742634527644,5.00733,1997.1,1996.7,31.48909]
[1742634527848,5.00733,1997.1,1997.0,0.20116878]
[1742634528145,5.00733,1997.1,1996.7,30.193409]
[1742634528146,5.00733,1997.1,1996.7,35.201559]
[1742634528345,5.00733,1997.1,1997.0,0.20116878]
[1742634528669,5.00701,1997.2,1997.0,0.20116878]
[1742634528819,5.00701,1997.2,1996.8,5.00792]
[1742634529140,5.80276,1997.3,1997.1,0.20085308]
[1742634529313,5.80276,1997.3,1996.9,5.00755]
[1742634529507,5.80276,1997.3,1997.2,0.20055574]
[1742634529706,5.80276,1997.3,1996.9,5.81355]
[1742634529917,5.97198966,1997.6,1997.2,0.20055574]
[1742634530241,15.98424966,1997.6,1997.3,0.2002401]
[1742634530436,10.18203966,1997.6,1997.3,0.2002401]
[1742634530638,15.18825966,1997.6,1997.2,5.81293]
[1742634530813,5.00627,1997.5,1997.4,0.19964916]
[1742634531137,5.17598966,1997.6,1997.3,0.19996477]
[1742634531330,5.00636,1997.5,1997.4,0.19964916]
[1742634531640,5.00651,1997.4,1997.2,0.806]
[1742634531804,5.00651,1997.4,1997.0,15.82141]
[1742634532012,5.00677,1997.3,1997.0,13.702901]
[1742634532210,10.01224,1997.6,1997.1,5.00717]
[1742634532411,5.00601,1997.6,1997.1,10.06433641]
[1742634532645,5.00626,1997.5,1997.1,5.05716641]
[1742634532826,5.0061,1997.6,1997.1,0.37530272]
[1742634533008,5.0061,1997.6,1997.2,5.00691]
[1742634533205,10.01231,1997.6,1997.2,5.00691]
[1742634533611,5.00628,1997.5,1997.1,5.64089802]
[1742634534115,5.00651,1997.4,1997.1,0.63364802]
[1742634534340,5.00651,1997.4,1997.0,18.710401]
[1742634534521,5.00651,1997.4,1997.0,18.710301]
[1742634535030,5.00686,1997.3,1997.0,8.878901]
[1742634535344,5.00686,1997.3,1997.1,5.02630245]
[1742634536957,5.00651,1997.4,1997.1,5.02630245]
[1742634537152,5.00651,1997.4,1997.1,5.07637064]
[1742634537451,5.00651,1997.4,1997.1,5.02630245]
[1742634537870,10.01313,1997.4,1997.1,5.02630245]
[1742634538036,5.00651,1997.4,1997.1,5.02630245]
[1742634538224,5.00677,1997.3,1997.1,5.02630245]
[1742634538430,10.01318,1997.4,1997.1,5.02630245]
[1742634539958,5.00683,1997.3,1997.1,5.02630245]
[1742634540154,5.007,1997.2,1997.1,5.02630245]
[1742634540521,5.007,1997.2,1997.1,0.20030245]
[1742634540860,5.007,1997.2,1997.1,0.20037585]
[1742634541988,5.00776,1996.9,1996.8,5.99]
[1742634542188,5.00801,1996.8,1996.7,31.3]
[1742634542977,5.00801,1996.8,1996.7,26.481]
[1742634544239,8.83441582,1996.8,1996.7,26.65100151]
[1742634544565,9.58971582,1996.8,1996.7,26.65100151]
[1742634544732,11.0494634,1996.8,1996.7,26.65100151]
[1742634545269,11.0494634,1996.8,1996.7,0.17000151]
[1742634545487,5.2861534,1996.8,1996.1,26.475]
[1742634545635,10.01896,1996.3,1996.1,31.297]
[1742634545835,5.00948,1996.3,1996.1,31.297]
[1742634546031,5.00951,1996.2,1996.1,26.475]
[1742634546881,5.00948,1996.3,1996.1,26.475]
[1742634547079,5.00913,1996.4,1996.1,29.6045]
[1742634547291,5.0089,1996.5,1996.2,0.8026]
[1742634547434,10.01784,1996.5,1996.2,0.8026]
[1742634547965,5.0089,1996.5,1996.2,0.8026]
[1742634549136,10.01788,1996.5,1996.2,0.8026]
[1742634549478,5.0089,1996.5,1996.2,0.8026]
[1742634549844,10.01785,1996.5,1996.2,0.8026]
[1742634550297,5.00907,1996.4,1996.2,0.8026]
[1742634550880,10.01828,1996.4,1996.2,0.8026]
[1742634551078,10.01829,1996.4,1996.2,0.8026]
[1742634551252,5.00929,1996.3,1996.1,29.6045]
[1742634551454,5.00929,1996.3,1996.1,26.475]
[1742634551750,5.00951,1996.2,1996.1,26.475]
[1742634551938,5.00909,1996.4,1996.1,26.475]
[1742634552137,5.00909,1996.4,1996.1,35.29376]
[1742634552439,5.00909,1996.4,1996.1,30.28401]
[1742634552637,10.01829,1996.4,1996.1,30.28401]
[1742634553062,10.01828,1996.4,1996.1,30.28401]
[1742634553268,10.01833,1996.4,1996.1,35.10001]
[1742634553442,10.01825,1996.4,1996.1,35.10001]
[1742634554283,5.00928,1996.3,1996.1,35.10001]
[1742634554778,5.00928,1996.3,1996.1,31.288]
[1742634555090,5.00951,1996.2,1996.1,31.288]
[1742634555884,5.00928,1996.3,1996.1,31.288]
[1742634556239,5.00928,1996.3,1996.1,26.475]
[1742634557216,5.00951,1996.2,1996.1,26.475]
[1742634558618,5.00985,1996.1,1995.9,10.801]
[1742634558825,5.01077,1995.7,1995.3,11.64969976]
[1742634559124,10.01989,1996.1,1995.5,0.8111]
[1742634559311,5.01007,1996.0,1995.6,9.83881]
[1742634561001,5.79852,1996.2,1995.8,0.8111]
[1742634561206,5.00995,1996.1,1995.8,0.8111]
[1742634561514,10.01994,1996.1,1995.8,0.8111]
[1742634561717,5.01004,1996.0,1995.8,0.8111]
[1742634562311,10.02025,1996.0,1995.8,0.8111]
[1742634562620,5.0102,1996.0,1995.5,10.65117]
[1742634562811,5.01038,1995.9,1995.5,10.65117]
[1742634563325,5.01038,1995.9,1995.5,10.83329]
[1742634563620,5.01038,1995.9,1995.6,4.827]
[1742634563830,5.01061,1995.8,1995.6,4.827]
[1742634564535,5.01061,1995.8,1995.6,4.825]
[1742634564840,5.01054,1995.8,1995.5,6.00990621]
[1742634566322,5.01054,1995.8,1995.5,7.71102783]
[1742634566532,5.01054,1995.8,1995.6,4.821]
[1742634566842,5.01033,1995.9,1995.6,4.821]
[1742634567403,5.01033,1995.9,1995.5,7.89827783]
[1742634567741,5.01033,1995.9,1995.6,4.819]
[1742634568443,5.00981,1996.1,1995.6,6.09072778]
[1742634568651,5.00981,1996.1,1995.7,5.81168]
[1742634569149,5.01002,1996.0,1995.7,0.8011]
[1742634569503,5.01002,1996.0,1995.7,27.2891]
[1742634569703,5.00952,1996.2,1995.8,9.82636]
[1742634569942,5.00986,1996.1,1995.8,4.816]
[1742634570459,10.01915,1996.2,1995.8,4.816]
[1742634570605,5.00978,1996.1,1995.8,13.538047]
[1742634572065,5.00978,1996.1,1995.8,8.527577]
[1742634572266,5.00956,1996.2,1995.8,18.548437]
[1742634572825,5.00956,1996.2,1995.9,5.01022]
[1742634573027,8.83569582,1996.3,1995.9,5.55644948]
[1742634573528,8.83569582,1996.3,1995.9,5.55627948]
[1742634573730,8.83569582,1996.3,1996.0,5.00998]
[1742634573961,5.00929,1996.3,1996.0,5.00998]
[1742634574128,5.00929,1996.3,1996.0,5.81108]
[1742634574329,5.00929,1996.3,1996.0,6.94781595]
[1742634574531,5.00929,1996.3,1996.0,1.93783595]
[1742634576329,10.01874,1996.3,1996.0,1.93783595]
[1742634576969,5.76903,1996.2,1995.9,0.54622948]
[1742634577172,8.83625582,1996.1,1995.8,8.516577]
[1742634579128,8.83625582,1996.1,1995.8,3.711577]
[1742634579340,8.83625582,1996.1,1995.8,8.513577]
[1742634579571,3.82640582,1996.1,1995.8,13.524087]
[1742634580668,8.83619582,1996.1,1995.8,8.722087]
[1742634580870,8.83619582,1996.1,1995.8,8.511577]
[1742634581736,8.83619582,1996.1,1995.8,8.509577]
[1742634582773,8.83619582,1996.1,1995.8,13.520077]
[1742634583269,8.83619582,1996.1,1995.8,13.517077]
[1742634583976,8.83619582,1996.1,1995.8,4.795]
[1742634584267,3.82640582,1996.1,1995.8,9.80542]
[1742634584470,10.77875,1996.2,1995.8,9.80542]
[1742634584971,5.76904,1996.2,1995.8,9.80542]
[1742634585377,10.77875,1996.2,1995.8,9.80542]
[1742634586096,10.77875,1996.2,1995.8,5.01042]
[1742634586278,3.82640582,1996.1,1995.8,5.01046]
[1742634586819,3.82640582,1996.1,1995.8,5.01035]
[1742634587152,5.0088,1996.5,1995.9,0.7503]
[1742634587153,0.769,1996.4,1995.9,0.7503]
[1742634587463,5.77804,1996.4,1996.0,5.00991]
[1742634588093,10.78726,1996.4,1996.0,5.00991]
[1742634588276,9.60444582,1996.4,1996.0,5.00991]
[1742634588462,14.61367582,1996.4,1996.0,5.00991]
[1742634588663,5.00927,1996.3,1996.0,5.00991]
[1742634588990,5.00927,1996.3,1996.0,5.585931]
[1742634589201,5.00902,1996.4,1996.0,5.585911]
[1742634589971,3.769,1996.6,1996.1,4.784]
[1742634590195,5.00888,1996.5,1996.2,0.7503]
[1742634593193,10.01786,1996.5,1996.2,0.7503]
[1742634593495,5.00903,1996.4,1996.2,0.7503]
[1742634593693,5.00933,1996.3,1996.1,4.784]
[1742634593997,5.00933,1996.3,1996.0,31.264]
[1742634594197,5.00933,1996.3,1996.0,35.469711]
[1742634594589,5.00933,1996.3,1996.0,31.264]
[1742634594778,5.00933,1996.3,1996.0,4.777]
[1742634595907,10.01882,1996.3,1996.0,4.777]
[1742634599302,10.01882,1996.3,1995.9,10.93062643]
[1742634599922,5.00933,1996.3,1995.9,5.92047643]
[1742634600083,8.83595582,1996.2,1995.9,5.92047643]
[1742634600379,8.83595582,1996.2,1995.9,10.26127507]
[1742634600580,13.84571582,1996.2,1995.9,9.48857507]
[1742634600981,5.94898966,1996.7,1996.0,0.7727]
[1742634601208,5.78144,1996.7,1996.2,5.78212]
[1742634601406,5.00867,1996.6,1996.3,4.789]
[1742634603214,8.83507582,1996.6,1996.3,4.789]
[1742634603522,5.78201,1996.4,1996.3,4.789]
[1742634604289,0.773,1996.4,1996.3,4.789]
[1742634604625,5.78152,1996.6,1996.3,4.789]
[1742634604814,5.00852,1996.6,1996.3,5.5617]
[1742634605589,5.78113,1996.8,1996.4,5.00879]
[1742634605794,3.82640582,1996.9,1996.5,5.00863]
[1742634605795,8.83427582,1996.9,1996.5,5.00863]
[1742634605990,8.83427582,1996.9,1996.5,5.16800964]
[1742634606926,8.83427582,1996.9,1996.6,5.00849]
[1742634607225,3.82640582,1996.9,1996.6,5.78119]
[1742634607401,3.0,1997.1,1996.8,5.00801]
[1742634607737,8.59451701,1997.1,1996.9,0.15811638]
[1742634607895,3.0,1997.1,1996.8,5.00787]
[1742634608094,3.0,1997.1,1996.9,0.15670835]
[1742634608318,3.0,1997.1,1996.8,5.00787]
[1742634608527,3.0,1997.1,1997.0,0.15639262]
[1742634608920,3.0,1997.1,1996.8,5.00787]
[1742634609102,3.0,1997.1,1997.0,0.15639262]
[1742634609291,8.83343582,1997.2,1996.8,5.00787]
[1742634609489,8.83343582,1997.2,1996.9,0.15670835]
[1742634609809,8.83343582,1997.2,1996.8,6.488252]
[1742634610131,3.0,1997.3,1996.9,0.15670835]
[1742634610319,8.00681,1997.3,1997.0,5.0074]
[1742634610636,8.00681,1997.3,1997.0,0.15639262]
[1742634610840,5.00702,1997.2,1997.0,0.15639262]
[1742634611200,3.0,1997.3,1997.0,0.15639262]
[1742634611747,5.0068,1997.3,1997.0,6.15888888]
[1742634613222,5.0068,1997.3,1997.0,1.15138888]
[1742634613802,5.0068,1997.3,1997.0,0.15639262]
[1742634614007,5.00682,1997.3,1997.0,0.15639262]
[1742634615653,4.59920582,1997.4,1997.0,0.15639262]
[1742634615850,5.0071,1997.2,1997.0,0.15639262]
[1742634616347,5.00684,1997.3,1997.0,0.15639262]
[1742634619351,5.00653,1997.4,1997.1,0.8171]
[1742634619723,5.00653,1997.4,1997.2,0.15513974]
[1742634620266,3.82640582,1997.3,1997.2,0.15513974]
[1742634620466,9.60595582,1997.3,1997.2,0.15513974]
[1742634620621,9.60595582,1997.3,1996.9,10.16684284]
[1742634620822,9.60595582,1997.3,1997.2,0.15513974]
[1742634621064,9.60595582,1997.3,1996.9,11.76603612]
[1742634621233,14.61295582,1997.3,1997.2,0.15513974]
[1742634621432,14.61295582,1997.3,1996.9,11.76603612]
[1742634621667,5.00702,1997.2,1996.9,11.76603612]
[1742634622160,8.83315582,1997.3,1997.0,1.17660361]
[1742634622363,8.83315582,1997.3,1996.9,10.16681284]
[1742634622545,8.83315582,1997.3,1996.9,15.17443284]
[1742634623362,8.83315582,1997.3,1997.0,0.1550582]
[1742634624249,5.00651,1997.4,1997.0,0.1550582]
[1742634624446,8.83291582,1997.4,1997.0,5.1624482]
[1742634624653,5.00677,1997.3,1997.0,1.6879783]
[1742634626247,10.01371,1997.3,1997.0,0.1550582]
[1742634626424,0.8063,1997.2,1997.0,0.1550582]
[1742634627454,9.63982582,1997.2,1997.0,0.1550582]
[1742634627660,5.00726,1997.1,1997.0,0.1550582]
[1742634628632,5.00726,1997.1,1996.8,26.475]
[1742634628831,5.00726,1997.1,1997.0,0.15491199]
[1742634629329,5.00726,1997.1,1996.8,26.475]
[1742634629554,5.00726,1997.1,1997.0,0.15491199]
[1742634629757,5.00726,1997.1,1996.9,0.15522773]
[1742634629930,5.00726,1997.1,1997.0,0.15491199]
[1742634630445,8.83352582,1997.2,1996.8,31.48298]
[1742634630650,5.00712,1997.2,1997.0,0.15491199]
[1742634630957,5.00712,1997.2,1997.1,0.15459629]
[1742634631159,8.83321582,1997.3,1997.1,0.15459629]
[1742634631459,3.8063,1997.4,1997.0,5.00742]
[1742634631627,3.8063,1997.4,1997.2,0.29127292]
[1742634631857,8.81281,1997.4,1997.1,0.29090108]
[1742634632051,8.81281,1997.4,1997.3,0.29025606]
[1742634632385,3.8063,1997.4,1997.3,0.29025606]
[1742634632584,3.8063,1997.4,1997.0,5.00742]
[1742634632879,3.8063,1997.4,1997.3,0.29025606]
[1742634633088,3.8063,1997.4,1997.0,5.00742]
[1742634633290,3.53614976,1997.3,1996.9,5.81177]
[1742634633581,3.53614976,1997.3,1997.0,0.26703563]
[1742634633774,8.54291976,1997.3,1997.0,0.26703563]
[1742634633976,3.53614976,1997.3,1997.0,0.26703563]
[1742634638153,8.8128,1997.4,1997.0,0.26703563]
[1742634638354,14.02111282,1997.4,1997.0,0.26703563]
[1742634639591,9.01461282,1997.4,1997.1,0.26596391]
[1742634639762,14.02113282,1997.4,1996.9,5.00767]
[1742634640081,14.02113282,1997.4,1997.2,0.26564138]
[1742634640291,5.00635,1997.5,1997.1,5.00725]
[1742634640460,3.0,1997.5,1997.3,0.26531889]
[1742634640662,3.0,1997.5,1997.2,0.26564138]
[1742634640857,3.0,1997.5,1997.4,0.26499643]
[1742634641061,5.24018058,1997.5,1997.3,0.26531889]
[1742634641389,5.24018058,1997.5,1997.4,0.26499643]
[1742634641557,5.24018058,1997.5,1997.1,5.00725]
[1742634641760,3.0,1997.5,1997.1,5.00725]
[1742634641989,3.0,1997.5,1997.2,0.26556831]
[1742634643186,8.00626,1997.5,1997.2,0.26556831]
[1742634643391,3.0,1997.5,1997.2,0.26556831]
[1742634644096,0.8063,1997.3,1997.2,0.26556831]
[1742634644304,1.77023158,1997.3,1997.2,0.26556831]
[1742634644510,0.8063,1997.3,1996.9,5.38479912]
[1742634644667,0.8063,1997.3,1997.2,0.26556831]
[1742634644863,0.8063,1997.3,1997.0,5.00749]
[1742634645058,5.81305,1997.3,1997.2,0.26556831]
[1742634645259,0.8063,1997.3,1997.1,0.26589083]
[1742634645464,1.77023158,1997.3,1997.2,0.26556831]
[1742634645898,1.77023158,1997.3,1996.9,5.0076]
[1742634646207,0.8063,1997.3,1996.9,5.0076]
[1742634646375,0.8063,1997.3,1997.0,5.27382306]
[1742634647912,0.8063,1997.3,1997.0,0.26632306]
[1742634648116,0.8063,1997.3,1996.8,9.75283]
[1742634648309,0.8063,1997.3,1996.9,5.25227484]
[1742634649507,5.81305,1997.3,1996.9,5.25227484]
[1742634650515,5.81305,1997.3,1996.9,10.25984484]
[1742634650713,8.83295582,1997.4,1997.0,5.78242]
[1742634650913,8.83295582,1997.4,1997.1,0.24403969]
[1742634651429,3.82640582,1997.4,1997.1,5.25111969]
[1742634651885,8.81266,1997.5,1997.1,5.25111969]
[1742634652086,12.63906582,1997.5,1997.1,5.25111969]
[1742634653204,14.4035754,1997.5,1997.1,5.25111969]
[1742634655920,19.4100254,1997.5,1997.1,0.24403969]
[1742634656119,14.4035754,1997.5,1997.1,0.24403969]
[1742634656418,5.00653,1997.4,1997.1,0.24403969]
[1742634661135,2.29151359,1997.3,1997.1,0.24403969]
[1742634662256,2.29151359,1997.3,1997.1,5.25127969]
[1742634662754,2.29151359,1997.3,1997.1,0.24403969]
[1742634662960,10.57716958,1997.5,1997.1,0.24403969]
[1742634663256,5.29151359,1997.5,1997.2,5.0069]
[1742634663744,5.29151359,1997.5,1997.3,0.24339465]
[1742634663921,2.29151359,1997.4,1997.3,0.24339465]
[1742634664650,10.18527966,1998.3,1997.5,5.00625]
[1742634664953,10.18527966,1998.3,1997.7,5.00551]
[1742634664954,2.29151359,1997.9,1997.7,5.00551]
[1742634665116,2.29151359,1997.8,1997.6,0.7699]
[1742634665321,2.29151359,1997.8,1997.6,4.752]
[1742634666126,2.29151359,1997.8,1997.5,5.99]
[1742634666423,2.29151359,1997.7,1997.5,5.99]
[1742634666629,2.29151359,1997.8,1997.5,5.00614]
[1742634667152,9.68390833,1997.9,1997.6,0.24179195]
[1742634667356,5.00552,1997.8,1997.6,0.24179195]
[1742634667856,6.32149529,1998.0,1997.6,0.24179195]
[1742634668019,8.82269844,1997.9,1997.6,0.24179195]
[1742634668361,8.82269844,1997.9,1997.7,0.24146958]